Cogmind - Beta 13 @@@ ROGUE MODE // 2024.05.12 @ 12:19:37 Player: Skrub Result: Destroyed by G-34 Mercenary with Small Laser Performance ------------- Evolutions (1) 500 Regions Visited (2) 400 Robots Destroyed (39) 195 Value Destroyed (720) 720 Prototype IDs (0) 0 Alien Tech Used (0) 0 Bonus (52) 52 TOTAL SCORE: 1867 Bonus ------- High Alert Combat Kills 52 Cogmind --------- Core Integrity 0/400 Matter 291/300 Energy 100/100 System Corruption 6% Temperature Cool (86) Movement Core (50) Location -9/Materials Parts ------- > --- POWER (1) -------- (None) > --- PROPULSION (3) --- (None) > --- UTILITY (3) ------ Heat Sink Advanced Targeting Computer > --- WEAPON (2) ------- Mace > --- INVENTORY (5) ---- Light Ion Engine Beam Rifle Improved Assault Rifle Mining Laser Plasma Cutter Peak State ------------ > --- POWER ------------ Improved Ion Engine > --- PROPULSION ------- Flight Unit Flight Unit Flight Unit > --- UTILITY ---------- Heat Sink Advanced Targeting Computer Propulsion Shielding > --- WEAPON ----------- Beam Rifle Mace > --- INVENTORY -------- Light Ion Engine Improved Assault Rifle Mining Laser Plasma Cutter [Rating: 14] Favorites ----------- Power Light Ion Engine Engine Light Ion Engine Propulsion Flight Unit Treads Light Treads Hover Unit Hover Unit Flight Unit Flight Unit Utility Propulsion Shielding Device Heat Sink Storage Small Battery Processor Transport Network Coupler Protection Propulsion Shielding Weapon Welding Torch Energy Gun EM Pulse Gun Ballistic Gun Light Assault Rifle Launcher Rocket Launcher Special Weapon Welding Torch Impact Weapon Hammer Build | -11 -10 -9 ------- Run | Yrd Mat Mat Slots Evolved 2 | . . 2 Power . | . . . Propulsion 1 | . . 1 Utility 1 | . . 1 Weapon . | . . . Parts Attached 43 | 3 16 24 Power 5 | 2 1 2 Engine 5 | 2 1 2 Core . | . . . Reactor . | . . . Propulsion 11 | . 4 7 Treads 2 | . . 2 Leg . | . . . Wheel . | . . . Hover 1 | . 1 . Flight 8 | . 3 5 Utility 11 | . 4 7 Device 2 | . 1 1 Storage 1 | . . 1 Processor 2 | . 1 1 Hackware . | . . . Protection 6 | . 2 4 Artifact . | . . . Weapon 16 | 1 7 8 Energy Gun 5 | 1 2 2 Energy Cannon . | . . . Ballistic Gun 3 | . 3 . Ballistic Cannon . | . . . Launcher 2 | . . 2 Special Weapon 2 | . 2 . Impact Weapon 4 | . . 4 Slashing Weapon . | . . . Piercing Weapon . | . . . Special Melee Weapon . | . . . Unidentified Prototypes . | . . . Corrupted Parts 2 | . . 2 System Corruption 6 | . . 6 Parts Lost 20 | . 6 14 Power 4 | . 1 3 Propulsion 6 | . 1 5 Utility 4 | . 1 3 Weapon 6 | . 3 3 Highest Loss Streak 7 | . 4 7 To Critical Strikes . | . . . Average Slot Usage (%) 54 | . 46 77 Engine 11 | . 11 9 Treads 1 | . . 3 Hover 1 | . 2 . Flight 9 | . 5 19 Device 2 | . . 4 Processor 6 | . 6 8 Protection 7 | . 4 14 Energy Gun 2 | . 2 2 Ballistic Gun 4 | . 4 1 Special Weapon 5 | . 7 . Impact Weapon 2 | . . 8 Naked Turns . | . . . Heaviest Build 16 | 7 7 16 Greatest Support 40 | 3 8 40 Greatest Overweight (x) 3 | 2 1 3 Average Overweight (x) . | . . . Largest Inventory Capacity 5 | 5 5 5 Average Capacity 5 | 5 5 5 Most Carried 5 | 2 5 5 Average Carried 2 | . 2 4 Final Capacity 5 | 5 5 5 Final Carried 5 | . 5 5 Class Distribution -------------------- 72% | Mutant 27% | Scavenger-Mutant Dominant Class ---------------- Mutant | -10/Materials Scavenger-Mutant | -9/Materials Resources | -11 -10 -9 ----------- Run | Yrd Mat Mat Matter Collected 790 | 226 240 324 Remotely . | . . . Salvage Created 908 | . 313 595 Parts 66 | . 23 43 Haulers Intercepted . | . . . Recyclers Shooed 1 | . . 1 Parts Field Recycled . | . . . Retrieved Matter . | . . . Parts Self-Destructed . | . . . Prevented . | . . . Kills | -11 -10 -9 ------- Run | Yrd Mat Mat Combat Hostiles Destroyed 27 | . 9 18 Melee 8 | . 2 6 Guns 7 | . 6 1 AOE 8 | . 1 7 Classes Destroyed 8 | . 4 4 Worker 1 | . . 1 Builder 4 | . 1 3 Recycler 3 | . . 3 Operator 1 | . . 1 Watcher 3 | . 1 2 Swarmer 17 | . 3 14 Grunt 6 | . 6 . Sentry 4 | . . 4 Best Kill Streak 11 | . 5 11 Combat Bots Only 8 | . 5 8 Max Kills in Single Turn 4 | . 2 4 Gunslinging . | . . . Exploded 3 | . 1 3 Melee 1 | . 1 1 Uniques/NPCs Destroyed . | . . . Combat | -11 -10 -9 -------- Run | Yrd Mat Mat Hostile Shots Fired 232 | . 63 169 Missed 69 | . 15 54 Damage Taken 1882 | . 505 1377 Core 579 | . 178 401 Absorbed by Shields . | . . . Redirected to Shielding 51 | . . 51 Core Remaining (%) 64 | 100 28 . Volleys Fired 55 | . 41 14 Largest 2 | . 2 1 Hottest 120 | . 120 56 Shots Fired 70 | . 56 14 Gun 47 | . 37 10 Cannon . | . . . Launcher 4 | . . 4 Special 19 | . 19 . Kinetic 32 | . 32 . Thermal 29 | . 19 10 Explosive 4 | . . 4 Electromagnetic 5 | . 5 . Robot Hit Streak 13 | . 11 13 Robot Miss Streak 3 | . 3 1 Penetration Max . | . . . Secondary Targets 1 | . 1 . Max Gunslinging Chain 1 | . 1 . Shots Hit Robots 64 | . 30 34 Core Hits 45 | . 24 21 Critical Kills 2 | . . 2 Critical Parts Destroyed 7 | . . 7 Critical Strikes 10 | . . 10 Burn 1 | . . 1 Smash 9 | . . 9 Melee Attacks 38 | . . 38 Impact 38 | . . 38 Slashing . | . . . Piercing . | . . . Sneak Attacks . | . . . Combat Hostiles . | . . . Follow-up Attacks 4 | . . 4 Damage Inflicted 1891 | . 488 1403 Guns 349 | . 247 102 Cannons . | . . . Explosions 913 | . 205 708 Melee 571 | . . 571 Ramming 50 | . 28 22 Kinetic 195 | . 195 . Thermal 110 | . 8 102 Explosive 824 | . 116 708 Electromagnetic 141 | . 141 . Impact 571 | . . 571 Slashing . | . . . Piercing . | . . . Highest Corruption 6 | . . 6 Average Corruption 5 | . . 5 Corruption Purged . | . . . Corruption Blocked . | . . . Effects 8 | . . 8 Message Errors 3 | . . 3 Matter Fused 1 | . . 1 Heat Flow Errors 2 | . . 2 Data Loss (minor) 2 | . . 2 Overload Shots . | . . . Overflow Damage 202 | . . 202 Projectiles . | . . . Explosions 12 | . . 12 Melee 190 | . . 190 Knockbacks 2 | . . 2 Impact 2 | . . 2 Kinetic . | . . . Secondary . | . . . Self-Inflicted Damage 135 | . 13 122 Shots 3 | . . 3 Rammed 18 | . 7 11 Targets Rammed 19 | . 7 12 Kicked . | . . . Crushed 1 | . . 1 Highest Temperature 264 | . 48 264 Average Temperature 30 | . 11 65 Received Heat Transfer 426 | . 159 267 Effects 3 | . . 3 Interference 3 | . . 3 Siege Activations . | . . . Robots Corrupted . | . . . Combat Hostiles . | . . . Parts Fried 8 | . 1 7 Impact Corruptions 14 | . . 14 Robots Melted . | . . . Combat Hostiles . | . . . Parts Melted . | . . . Heat Transferred 408 | . 75 333 Parts Sabotaged . | . . . Parts Stolen . | . . . Parts Stripped . | . . . Power Chain Reactions . | . . . Alert | -11 -10 -9 ------- Run | Yrd Mat Mat Peak Influence 742 | . 412 742 Initial 173 | . . 173 Average 233 | . 148 484 Maximum Alert Level 3 | . 2 3 Low Security (%) 44 | 100 55 11 Level 1 35 | . 40 24 Level 2 13 | . 4 37 Level 3 6 | . . 26 Level 4 . | . . . Level 5 . | . . . High Security . | . . . Max Security . | . . . Squads Dispatched 7 | . 4 3 Investigation 3 | . 2 1 Extermination . | . . . Reinforcement 4 | . 2 2 Assault . | . . . Garrison . | . . . Intercept . | . . . Searches Triggered . | . . . Construction Impeded . | . . . Haulers Reinforced . | . . . Active Scanning Responses . | . . . Cargo Convoy Interrupts . | . . . Stealth | -11 -10 -9 --------- Run | Yrd Mat Mat Distress Signals 5 | . 4 1 Communications Jammed . | . . . Distress Signals . | . . . Times Spotted 62 | . 34 28 Peak Tracking Total 8 | . 8 7 Tactical Retreats 4 | . 4 . Traps | -11 -10 -9 ------- Run | Yrd Mat Mat Traps Triggered 1 | . 1 . Indirectly . | . . . Trap Hack Attempts . | . . . Triggered . | . . . Disarmed . | . . . Reprogrammed . | . . . Reused . | . . . Traps Extracted . | . . . Installed . | . . . Triggered . | . . . Objects Rigged 6 | . 5 1 Exploded 1 | . 1 . Machines | -11 -10 -9 ---------- Run | Yrd Mat Mat Machines Disabled 5 | . 3 2 Max in Single Turn 2 | . 2 2 Machines Repaired . | . . . Machines Dismantled . | . . . Machines Sabotaged . | . . . Overloaded Fab Kills . | . . . Hacking | -11 -10 -9 --------- Run | Yrd Mat Mat Machines Accessed 7 | . 5 2 Terminals 6 | . 4 2 Fabricators . | . . . Repair Stations . | . . . Recycling Units 1 | . 1 . Scanalyzers . | . . . Garrison Access . | . . . Total Hacks 30 | . 21 9 Successful 16 | . 12 4 Failed 14 | . 9 5 Catastrophic 2 | . 1 1 Database Lockouts . | . . . Manual 25 | . 19 6 Terminals 27 | . 18 9 Fabricators . | . . . Repair Stations . | . . . Recycling Units 3 | . 3 . Scanalyzers . | . . . Garrison Access . | . . . Terminal Hacks 3 | . 1 2 Locate Traps 2 | . 1 1 Recall Investigation 1 | . . 1 Fabricator Hacks . | . . . Repair Station Hacks . | . . . Recycling Unit Hacks 2 | . 2 . Report Inventory 2 | . 2 . Scanalyzer . | . . . Garrison Access Hacks . | . . . Unauthorized Hacks 11 | . 9 2 Terminals 10 | . 8 2 Assimilate 3 | . 3 . Botnet 4 | . 3 1 Detonate 2 | . 1 1 Operators 1 | . 1 . Fabricators . | . . . Repair Stations . | . . . Recycling Units 1 | . 1 . Recyclers 1 | . 1 . Scanalyzers . | . . . Garrison Access . | . . . Data Cores Recovered 1 | . . 1 Used . | . . . Hacking Detections 7 | . 5 2 Full Trace Events 2 | . 1 1 Feedback Events . | . . . Feedback Blocked . | . . . Robot Schematics Acquired . | . . . Robots Built . | . . . Authchips . | . . . Time . | . . . Total Robot Build Rating . | . . . Part Schematics Acquired . | . . . Parts Built . | . . . Authchips . | . . . Time . | . . . Total Part Build Rating . | . . . Parts Repaired . | . . . Time . | . . . Parts Recycled . | . . . Recycled Matter . | . . . Retrieved Matter . | . . . Retrieved Components . | . . . Parts Scanalyzed . | . . . Part Schematics Acquired . | . . . Parts Damaged . | . . . Bothacking | -11 -10 -9 ------------ Run | Yrd Mat Mat Used RIF Installer . | . . . Robots Hacked . | . . . Non-combat . | . . . Combat . | . . . Robot Hacks Applied . | . . . Relay Couplers Released . | . . . Fabnet Peak Effective % . | . . . Robots Rewired . | . . . Allies Hacked . | . . . Hacks Repelled . | . . . Allies | -11 -10 -9 -------- Run | Yrd Mat Mat Total Allies . | . . . Largest Group . | . . . Highest-Rated Group . | . . . Highest-Rated Ally . | . . . Total Orders . | . . . Ally Attacks . | . . . Total Damage . | . . . Kills . | . . . Allies Corrupted . | . . . Allies Melted . | . . . Intel | -11 -10 -9 ------- Run | Yrd Mat Mat Robot Analysis Total . | . . . Derelict Logs Recovered . | . . . Drone Launches . | . . . Drone Recoveries . | . . . Exploration | -11 -10 -9 ------------- Run | Yrd Mat Mat Turns Passed 1411 | 35 1001 375 Spaces Moved 1239 | 34 896 309 Core 307 | 34 259 14 Treads 29 | . . 29 Legs . | . . . Wheels . | . . . Hover 210 | . 210 . Flight 693 | . 427 266 Fastest Speed 34 | 50 37 34 Average Speed 59 | 83 58 58 Slowest Speed 200 | 150 120 200 Overloaded Moves . | . . . Propulsion Burnouts . | . . . Robots Hopped 2 | . 2 . Cave-ins Triggered . | . . . Exploration Rate (%) 42 | 3 84 39 Regions Visited 2 Branch Regions . Pre-discovered Areas . | . . . Known Exits Taken . | . . . Unknown Exits Taken 2 | 1 1 . Scrap Searched . | . . . Spaces Dug 1 | . 1 . Terrain Destroyed 76 | . 21 55 Melee . | . . . Projectile 2 | . 2 . AOE 74 | . 19 55 Terrain Rammed . | . . . Walls Destroyed . | . . . Machines Disabled . | . . . Actions | -11 -10 -9 --------- Run | Yrd Mat Mat Total 1774 | 40 1307 427 Wait 344 | . 333 11 Move 1233 | 33 891 309 Hop 2 | . 2 . Pick Up 32 | 3 16 13 Fast Attach 7 | . . 7 Attach 26 | 2 12 12 Detach 3 | . 1 2 Swap 10 | 1 4 5 Drop 10 | 1 . 9 Fire 55 | . 41 14 Melee 33 | . . 33 Ram 17 | . 7 10 Kick . | . . . Crush 2 | . . 2 Escape Stasis . | . . . Rewire . | . . . Trap . | . . . Miscellaneous . | . . . Route ------- -11/Scrapyard -10/Materials (discovered 3 exits: *Mat x2 / [*Min]) -9/Materials (discovered 1 exit: [*Min]) History --------- Turn | Location | Event 4 | -11/Scrapyard | Discovered new exit (range 15) 36 | -11/Scrapyard | Entered Materials 308 | -10/Materials | Build established: Mutant 802 | -10/Materials | Core integrity fell below 50% 845 | -10/Materials | Lost 4 parts (1p1n1u1w) 848 | -10/Materials | Discovered new exit (range 15) 890 | -10/Materials | Discovered new exit (range 15) 1005 | -10/Materials | Discovered new exit (range 13) 1037 | -10/Materials | Entered another Materials area 1037 | -9/Materials | Evolved 2 slots: Propulsion x1, Utility x1 1141 | -9/Materials | Discovered new exit (range 7) 1148 | -9/Materials | Destroyed 8 combat bots 1194 | -9/Materials | Core integrity fell below 50% 1224 | -9/Materials | Lost 7 parts (2p2n1u2w) 1397 | -9/Materials | Core integrity fell below 20% 1412 | -9/Materials | Destroyed by G-34 Mercenary with Small Laser Last Messages --------------- reinforcements to Terminal M005. 01363_ O-16 Technician locks terminal. 01363_ O-16 Technician cleans trojans from system. 01389_ Propulsion Shielding destroyed. 01389_ Flight Unit destroyed. 01391_ KFAR 8GET% Q/8PQB:G78PV 01395_ Flight Unit destroyed. 01402_ Imp. Ion Engine destroyed. 01402_ Destroyed Heat Sink. 01402_ Y-45 Defender system corrupted by crushing effect. 01406_ System corrupted: Heat flow error (+294). 01408_ Overheating: System interference. 01408_ Adv. Targeting Computer temporarily disabled. 01408_ Mace temporarily disabled. 01408_ Slammed into Y-45 Defender. 01408_ Y-45 Defender misfires. 01409_ Slammed into Y-45 Defender. Map ----- +----------------------------------------------------+ | ????????????+ ######### #????????????????????? | | ????????????# # # #????????????????????? | | ????????????# # # #????????????????????? | | ############# #""" # #????????????????????? | | #""" + #????????????????????? | | = """ # #????????????????????? | | ! ! # #????????????????????? | | +######### # """! # ########?????????????? | | %#= """ # # #?????????????? | | !# "" # # #?????????????? | | """ """ # # # g# """#?????????????? | | ?""" """ # # g """#?????????????? | | """ """ #[ ## ####### # """#?????????????? | | ?? ##+ ####### # #?????????????? | | ###########* ! "" # #########????????????? | | #####!=%*= ""S # # ?????????????? | | %% *%!!| """ "" # # """ ????????????? | | =[*=! """ #u # """"" ????????????? | | % = """ k + """"" ????????????? | | ##### # # #" """"" #??????????? | | ! "#######+############## #T """ #??????????? | | """#??????? ???????????# #" #??????????? | | ####????????? ??######?# # #??????????? | | ?????????????? ??# [# ###########??????????? | | ?????????????????# ! # # T #?????????????? | | ?????????????????# /@ + #?????????????? | | ?????????????????# "" # g # """ #?????????????? | | ?????????????????# S""? # Y # """ #?????????????? | | ?????????????????# "?? ?# g # """ #?????????????? | | ??????????????????????#?# # #?????????????? | | ??????????????########### ########?????????????? | | ??????????????# ! # #????????????????????? | | ??????????????# + #????????????????????? | | ??????????????# ! # #????????????????????? | | ??????????????# # #????????????????????? | | ??????????????#########?# #????????????????????? | | ?????????????????????#### #????????????????????? | | ?????????????????????# #????????????????????? | | ?????????????????????#! !#????????????????????? | | ?????????????????????##!!!!##????????????????????? | | ??????????????????????######?????????????????????? | | ?????????????????????????????????????????????????? | | ?????????????????????????????????????????????????? | | ?????????????????????????????????????????????????? | | ?????????????????????????????????????????????????? | | ?????????????????????????????????????????????????? | | ?????????????????????????????????????????????????? | | ?????????????????????????????????????????????????? | | ?????????????????????????????????????????????????? | | ?????????????????????????????????????????????????? | +----------------------------------------------------+ Best States ------------- Heat Dissipation 38 Energy Generation 12 Energy Capacity 265 Matter Stores 300 Matter Capacity 300 Sight Range 16 Terrain Scan Density 10 ECM Strength 1 Armor Coverage 150 Propulsion Shielding 33 Evasion (%) 63 Targeting Accuracy 8 Recoil Reduction 2 Item Schematics ----------------- None Robot Schematics ------------------ None Fabricated ------------ Nothing Alien Tech Used ----------------- None Achievements -------------- Fist Fight Challenges ------------ None Game ------ Seed HeartImpulseKatana Manual? 0 Play Time 00:28:18 Cumulative 4.6 hours Start 2024.05.12 @ 11:52:19 End 2024.05.12 @ 12:19:37 Sessions 1 Manual Loads 0 Difficulty Rogue Special Mode None Game No. 9 Rogue 9 Adventurer 0 Explorer 0 Win Type - Total 0 Types 0/0/0/0/0/0/0/0/0 Lore% 3 Gallery% 9 Achievement% 12 Wizard Run 0 Options --------- Layout 1 ASCII 0 Keyboard 0 Movement Mouse Keybinds 0 Fullscreen 1 Font 24/Smallcaps Map View 50x35 Zoom Use 0% Tactical HUD 1 Map Filters NONE Filters NONE Steam 1 RUN: ef47fb41-46c0-46c2-8a9d-1d1b4984cce6